bitfinex/quotes_SOLUSD_20241113
["timestamp","ask_amount","ask_price","bid_price","bid_amount"]
[1731460139474,0.4552312,211.4,211.3,23.77760583]
[1731460139475,23.77760583,211.37,211.3,23.77760583]
[1731460139964,23.77760583,211.37,211.31,16.5632]
[1731460140856,23.77760583,211.36,211.31,16.5632]
[1731460141058,23.77760583,211.37,211.31,16.5632]
[1731460141669,23.77760583,211.35,211.3,0.12549]
[1731460141851,4.7306,211.39,211.24,30.13760583]
[1731460141852,4.8306,211.39,211.24,30.13760583]
[1731460142049,23.77760583,211.27,211.24,11.0938]
[1731460142260,23.77760583,211.31,211.24,46.70620583]
[1731460142466,23.776884,211.36,211.25,0.12549]
[1731460142967,23.776884,211.38,211.25,0.12549]
[1731460143668,23.77760583,211.33,211.27,16.5663]
[1731460143879,23.77760583,211.32,211.27,16.5663]
[1731460144379,23.77760583,211.31,211.27,16.5663]
[1731460144861,23.77760583,211.29,211.25,4.7335]
[1731460145055,23.77760583,211.3,211.25,4.7335]
[1731460145255,23.77760583,211.29,211.25,16.5678]
[1731460145458,4.731,211.37,211.25,16.5678]
[1731460145459,23.77760583,211.3,211.25,0.12549]
[1731460145670,23.77760583,211.32,211.26,4.7335]
[1731460146070,23.77760583,211.34,211.27,20.0]
[1731460146252,23.77760583,211.34,211.28,0.12549]
[1731460146656,23.77760583,211.37,211.3,23.77760583]
[1731460146859,23.77760583,211.37,211.29,23.77760583]
[1731460147064,23.77760583,211.37,211.3,23.77760583]
[1731460147659,23.77760583,211.37,211.31,16.5632]
[1731460148076,23.77760583,211.37,211.32,0.12549]
[1731460148493,0.4552312,211.4,211.34,20.0]
[1731460148788,4.7267,211.56,211.4,20.0]
[1731460148956,23.77760583,211.53,211.4,20.0]
[1731460149158,23.77760583,211.53,211.46,23.77760583]
[1731460149159,7.36859716,211.53,211.46,23.77760583]
[1731460149360,23.77760583,211.53,211.46,23.77760583]
[1731460149776,23.77760583,211.55,211.48,43.77760583]
[1731460149975,23.77760583,211.56,211.49,23.77760583]
[1731460150176,23.77760583,211.55,211.48,43.77760583]
[1731460150566,23.77760583,211.54,211.48,20.0]
[1731460150762,23.77760583,211.52,211.48,20.0]
[1731460150980,23.77760583,211.53,211.48,20.0]
[1731460151385,23.77760583,211.54,211.48,20.0]
[1731460151584,23.77760583,211.53,211.48,24.7284]
[1731460151985,23.77760583,211.53,211.48,20.0]
[1731460152294,23.77760583,211.52,211.47,11.822]
[1731460152472,23.77760583,211.53,211.47,11.822]
[1731460153770,23.77760583,211.51,211.46,15.5636]
[1731460153972,23.77760583,211.5,211.47,0.12549]
[1731460154186,23.77760583,211.5,211.46,15.5636]
[1731460154567,4.7273,211.54,211.46,15.5636]
[1731460154773,23.77760583,211.47,211.42,18.221]
[1731460154984,23.77760583,211.46,211.42,11.8245]
[1731460155285,23.77760583,211.46,211.43,0.12549]
[1731460155688,23.77760583,211.47,211.43,0.12549]
[1731460155985,23.77760583,211.44,211.4,15.7008]
[1731460156183,23.77760583,211.45,211.41,0.12549]
[1731460156371,23.77760583,211.44,211.41,0.12549]
[1731460156687,23.77760583,211.44,211.4,15.7008]
[1731460157000,4.7285,211.49,211.36,6.434]
[1731460157286,23.77760583,211.41,211.37,0.12549]
[1731460157485,23.77760583,211.42,211.37,0.12549]
[1731460158092,23.77760583,211.43,211.37,0.12549]
[1731460160072,23.77760583,211.43,211.37,4.85639]
[1731460160276,23.77760583,211.43,211.37,28.63399583]
[1731460160700,23.776884,211.43,211.37,28.63399583]
[1731460162687,28.506584,211.43,211.37,23.90309583]
[1731460162873,23.77760583,211.4,211.37,0.12549]
[1731460163074,23.77760583,211.38,211.34,16.0453]
[1731460163281,23.77760583,211.35,211.29,4.7326]
[1731460163486,23.77760583,211.38,211.31,23.77760583]
[1731460163698,23.77760583,211.4,211.3,0.12549]
[1731460163879,23.77760583,211.42,211.35,23.77760583]
[1731460164070,23.776884,211.41,211.35,23.77760583]
[1731460164271,23.776884,211.42,211.33,23.77760583]
[1731460164477,23.776884,211.42,211.3,20.0]
[1731460164676,23.77760583,211.39,211.32,23.77760583]
[1731460164885,23.776884,211.38,211.33,23.77760583]
[1731460165199,23.776884,211.41,211.37,23.77760583]
[1731460165502,23.776884,211.43,211.37,23.77760583]
[1731460165790,23.776884,211.43,211.34,23.77760583]
[1731460165791,23.77760583,211.41,211.34,23.77760583]
[1731460166093,23.776884,211.38,211.32,23.77760583]
[1731460166482,23.77760583,211.37,211.33,0.12549]
[1731460166792,52.28538983,211.38,211.31,23.77760583]
[1731460167176,23.776884,211.36,211.31,0.12549]
[1731460167588,4.7309,211.38,211.28,15.8657]
[1731460167589,23.77760583,211.33,211.28,15.8657]
[1731460167791,23.776884,211.28,211.23,0.12549]
[1731460167993,23.77760583,211.28,211.23,0.12549]
[1731460168203,23.77760583,211.3,211.23,28.63709583]
[1731460168386,23.77760583,211.3,211.23,40.47249583]
[1731460168589,23.77760583,211.29,211.23,16.69489]
[1731460168980,23.77760583,211.29,211.23,11.96089]
[1731460169179,47.55448983,211.24,211.23,0.12549]
[1731460169380,23.77760583,211.27,211.23,0.12549]
[1731460169607,23.776884,211.26,211.23,0.12549]
[1731460170797,47.55448983,211.27,211.23,0.12549]
[1731460171401,23.776884,211.27,211.23,0.12549]
[1731460171608,47.55448983,211.27,211.23,0.12549]
[1731460172204,23.776884,211.27,211.23,0.12549]
[1731460172390,67.55448983,211.24,211.23,0.12549]
[1731460174200,72.28838983,211.24,211.23,0.12549]
[1731460174707,47.55448983,211.24,211.23,0.12549]
[1731460174893,23.776884,211.24,211.23,0.12549]
[1731460175277,23.77760583,211.25,211.23,0.12549]
[1731460175602,23.77760583,211.29,211.23,0.12549]
[1731460175782,23.77760583,211.25,211.23,0.12549]
[1731460175983,23.77760583,211.24,211.23,0.12549]
[1731460176184,28.51150583,211.24,211.23,0.12549]
[1731460176795,52.28838983,211.24,211.23,0.12549]
[1731460177385,23.77760583,211.26,211.23,0.12549]
[1731460177622,47.55448983,211.25,211.23,0.12549]
[1731460178293,23.776884,211.25,211.23,0.12549]
[1731460178486,23.77760583,211.28,211.23,0.12549]
[1731460178907,23.77760583,211.27,211.23,0.12549]
[1731460179205,23.77760583,211.28,211.23,0.12549]
[1731460180209,23.776884,211.27,211.23,0.12549]
[1731460180386,23.77760583,211.25,211.23,0.12549]
[1731460180903,47.55448983,211.27,211.23,0.12549]
[1731460181106,23.776884,211.27,211.23,4.85949]
[1731460181295,23.776884,211.27,211.23,0.12549]
[1731460181499,47.55448983,211.27,211.23,0.12549]
[1731460182500,23.77760583,211.25,211.23,0.12549]
[1731460183107,23.77760583,211.24,211.23,0.12549]
[1731460183313,47.55448983,211.24,211.23,0.12549]
[1731460184203,67.55448983,211.24,211.23,0.12549]
[1731460184590,72.28838983,211.24,211.23,0.12549]
[1731460185197,43.776884,211.23,211.14,15.3064]
[1731460185405,23.77760583,211.16,211.1,16.5795]
[1731460185712,23.77760583,211.16,211.11,4.7368]
[1731460185898,23.77760583,211.15,211.09,15.3552]
[1731460186217,23.77760583,211.17,211.09,50.97600583]
[1731460186594,23.77760583,211.16,211.13,4.86179]
[1731460186795,23.77760583,211.19,211.13,4.86179]
[1731460187513,23.77760583,211.19,211.13,16.70279]
[1731460189000,23.77760583,211.21,211.14,20.0]
[1731460189312,23.77760583,211.22,211.15,23.90309583]
[1731460189513,23.77760583,211.22,211.15,0.12549]
[1731460189889,23.77760583,211.21,211.15,0.12549]
[1731460190088,23.77760583,211.21,211.15,4.86119]
[1731460190503,23.77760583,211.16,211.13,0.12549]
[1731460190904,23.77760583,211.17,211.13,0.12549]
[1731460191411,23.77760583,211.19,211.13,4.86179]
[1731460191606,23.776884,211.2,211.14,23.77760583]
[1731460191806,23.77760583,211.23,211.16,23.77760583]
[1731460191996,23.776884,211.22,211.16,23.77760583]
[1731460192194,23.776884,211.22,211.16,28.51320583]
[1731460192516,28.511284,211.22,211.16,28.51320583]
[1731460193014,23.776884,211.22,211.17,23.77760583]
[1731460193214,23.776884,211.23,211.17,23.77760583]
[1731460194109,4.7339,211.24,211.17,40.35170583]
[1731460194414,4.7328,211.29,211.21,23.77760583]
[1731460194597,11.8294,211.34,211.19,0.12549]
[1731460194598,23.77760583,211.3,211.23,23.77760583]
[1731460194798,28.51020583,211.3,211.23,23.77760583]
[1731460195108,23.77760583,211.32,211.24,23.90309583]
[1731460195418,23.77760583,211.29,211.22,23.77760583]
[1731460195615,23.77760583,211.26,211.2,16.2416]
[1731460195916,23.77760583,211.27,211.2,16.2416]
[1731460196091,0.1,211.34,211.2,16.2416]
[1731460196092,23.77760583,211.28,211.21,4.86009]
[1731460196717,23.776884,211.27,211.21,4.86009]
[1731460196917,23.77760583,211.3,211.23,23.90309583]
[1731460197217,4.7299,211.42,211.3,20.12549]
[1731460197423,23.77760583,211.43,211.36,23.77760583]
[1731460198198,23.77760583,211.43,211.36,28.50870583]
[1731460198917,23.776884,211.42,211.36,4.7311]
[1731460199598,23.776884,211.42,211.35,11.8287]
[1731460199599,28.506784,211.42,211.35,11.8287]
[1731460200101,28.506784,211.42,211.35,16.5601]
[1731460200315,23.776884,211.42,211.35,16.5601]
[1731460200496,23.776884,211.42,211.36,0.12549]
[1731460200710,23.776884,211.42,211.36,23.90309583]
[1731460201416,23.77760583,211.45,211.39,0.12549]
[1731460202722,23.77760583,211.43,211.36,16.5591]
[1731460202901,23.77760583,211.43,211.37,0.12549]
[1731460203216,23.77760583,211.45,211.37,4.85629]
[1731460203436,23.776884,211.44,211.37,4.85629]
[1731460203719,23.77760583,211.43,211.37,4.7308]
[1731460203898,23.776884,211.42,211.36,11.8281]
[1731460204101,23.77760583,211.41,211.36,11.8281]
[1731460204301,23.77760583,211.43,211.36,16.5593]
[1731460204520,23.776884,211.42,211.36,40.33690583]
[1731460205408,47.55448983,211.42,211.35,23.77760583]
[1731460205619,47.55448983,211.4,211.32,23.77760583]
[1731460205825,23.77760583,211.39,211.31,58.75790583]
[1731460206028,23.77760583,211.38,211.32,0.12549]
[1731460206325,23.77760583,211.34,211.27,28.51070583]
[1731460206624,23.776884,211.34,211.29,23.77760583]
[1731460206817,23.776884,211.35,211.29,23.77760583]
[1731460207131,47.55448983,211.35,211.28,0.12549]
[1731460207295,47.55448983,211.35,211.27,40.34380583]
[1731460207495,47.55448983,211.35,211.28,0.12549]
[1731460207703,47.55448983,211.33,211.27,11.8331]
[1731460207899,23.776884,211.33,211.27,11.8331]
[1731460208119,28.50870583,211.37,211.3,23.77760583]
[1731460208319,23.776884,211.38,211.31,23.77760583]
[1731460208728,23.776884,211.38,211.33,23.77760583]
[1731460208922,6.3837,211.43,211.34,23.77760583]
[1731460208923,28.50790583,211.41,211.34,23.77760583]
[1731460209102,23.77760583,211.44,211.36,23.77760583]
[1731460209610,23.77760583,211.44,211.37,23.77760583]
[1731460209925,23.77760583,211.43,211.36,0.12549]
[1731460210217,23.77760583,211.44,211.37,23.77760583]
[1731460210410,23.77760583,211.45,211.37,23.77760583]
[1731460210719,23.77760583,211.46,211.38,23.77760583]
[1731460210920,23.77760583,211.46,211.35,16.5597]
[1731460210921,23.77760583,211.44,211.36,23.77760583]
[1731460211126,23.77760583,211.44,211.28,4.04734455]
[1731460211127,23.77760583,211.39,211.32,23.77760583]
[1731460211622,23.77760583,211.4,211.33,0.12549]
[1731460212022,23.77760583,211.4,211.34,4.85719]
[1731460212227,23.776884,211.41,211.36,0.12549]
[1731460212426,47.55448983,211.41,211.36,0.12549]
[1731460212724,23.776884,211.41,211.34,23.90309583]
[1731460213027,23.776884,211.41,211.36,0.12549]
[1731460213420,47.55448983,211.41,211.36,0.12549]
[1731460213617,47.55448983,211.41,211.34,23.90309583]
[1731460213819,23.776884,211.38,211.31,28.50980583]
[1731460214125,23.77760583,211.37,211.31,4.7322]
[1731460214521,52.28538983,211.38,211.32,0.12549]
[1731460215310,23.776884,211.39,211.32,23.90309583]
[1731460215510,28.50810583,211.4,211.32,23.90309583]
[1731460215827,28.50810583,211.4,211.32,0.12549]
[1731460216027,28.50810583,211.4,211.3,11.8315]
[1731460216028,23.77760583,211.37,211.3,20.0]
[1731460216333,23.77760583,211.4,211.34,0.12549]
[1731460216532,23.77760583,211.38,211.34,0.12549]
[1731460216713,23.776884,211.4,211.34,0.12549]
[1731460216714,47.55448983,211.4,211.34,0.12549]
[1731460216910,23.77760583,211.4,211.33,20.12549]
[1731460217139,23.77760583,211.42,211.36,0.12549]
[1731460217322,23.77760583,211.4,211.33,23.77760583]
[1731460217632,23.77760583,211.39,211.32,0.12549]
[1731460217834,23.77760583,211.41,211.34,23.77760583]
[1731460218021,23.77760583,211.45,211.37,23.77760583]
[1731460218326,23.776884,211.42,211.36,23.90309583]
[1731460218532,23.776884,211.42,211.36,0.12549]
[1731460219534,28.50590583,211.49,211.41,23.90309583]
[1731460219835,23.77760583,211.43,211.37,21.7308]
[1731460220626,23.77760583,211.46,211.38,23.90309583]
[1731460220833,4.7285,211.48,211.42,0.12549]
[1731460221143,23.77760583,211.53,211.47,0.12549]
[1731460221316,23.77760583,211.52,211.47,0.12549]
[1731460221643,4.7265,211.57,211.37,38.2893]
[1731460221644,23.77760583,211.48,211.37,38.2893]
[1731460221844,0.2,211.55,211.38,20.12549]
[1731460222015,0.1,211.55,211.38,20.12549]
[1731460222436,23.776884,211.53,211.4,0.12549]
[1731460222620,20.0,211.48,211.4,0.12549]
[1731460222826,23.77760583,211.42,211.4,0.12549]
[1731460223108,23.77760583,211.41,211.4,0.12549]
[1731460223325,23.77760583,211.41,211.37,21.7308]
[1731460223326,23.776884,211.4,211.32,4.7319]
[1731460223532,23.77760583,211.36,211.32,15.7039]
[1731460223735,23.776884,211.4,211.26,23.77760583]
[1731460223736,23.77760583,211.33,211.26,23.77760583]
[1731460224341,23.77760583,211.3,211.25,21.7308]
[1731460224843,23.77760583,211.27,211.18,15.7039]
[1731460225014,4.7327,211.3,211.18,15.7039]
[1731460225015,23.77760583,211.24,211.18,15.7039]
[1731460225432,23.77760583,211.22,211.18,15.7039]
[1731460225637,23.77760583,211.22,211.15,41.64410583]
[1731460225638,23.776884,211.21,211.15,17.8665]
[1731460225842,23.77760583,211.22,211.15,41.64410583]
[1731460226015,23.776884,211.21,211.15,41.64410583]
[1731460226339,23.77760583,211.18,211.13,0.12549]
[1731460226527,23.77760583,211.14,211.13,0.12549]
[1731460226729,47.55448983,211.14,211.13,0.12549]
[1731460227130,23.776884,211.22,211.13,0.12549]
[1731460227329,23.976884,211.18,211.13,0.12549]
[1731460227538,23.776884,211.2,211.13,0.12549]
[1731460227539,20.0,211.15,211.13,0.12549]
[1731460227722,43.776884,211.14,211.13,0.12549]
[1731460228342,23.776884,211.14,211.13,0.12549]
[1731460228718,23.77760583,211.16,211.13,0.12549]
[1731460228941,4.9347,211.21,211.13,0.12549]
[1731460229239,23.77760583,211.14,211.13,0.12549]
[1731460229447,43.77760583,211.14,211.13,0.12549]
[1731460229845,67.65448983,211.14,211.13,0.12549]
[1731460230433,67.55448983,211.14,211.13,0.12549]
[1731460230622,20.0,211.14,211.13,0.12549]
[1731460231623,20.0,211.14,211.0,11.8478]
[1731460231624,43.97760583,211.14,211.0,11.8478]
[1731460231819,23.77760583,211.06,211.0,11.8478]
[1731460232116,23.77760583,211.1,211.02,23.77760583]
[1731460232350,47.55448983,211.09,211.02,23.77760583]
[1731460232526,23.776884,211.09,211.02,23.77760583]
[1731460232725,23.776884,211.1,211.04,23.77760583]
[1731460232947,47.55448983,211.1,211.03,23.77760583]
[1731460233120,23.77760583,211.09,211.02,40.36340583]
[1731460233320,23.77760583,211.13,211.06,23.77760583]
[1731460233540,16.0689,211.28,211.05,0.07922722]
[1731460233720,23.77760583,211.21,211.13,23.77760583]
[1731460234049,4.7343,211.23,211.04,23.776884]
[1731460234050,0.1,211.22,211.04,0.12549]
[1731460234349,0.2,211.17,211.04,0.12549]
[1731460234550,0.1,211.17,211.04,0.12549]
[1731460234724,4.7352,211.18,211.02,11.8472]
[1731460234924,0.1,211.16,211.02,11.8472]
[1731460235149,27.7015,211.28,211.09,23.77760583]
[1731460235324,23.77760583,211.18,211.11,23.90309583]
[1731460235525,23.77760583,211.17,211.09,23.77760583]
[1731460235720,11.48516069,211.25,211.08,0.12549]
[1731460235948,11.58516069,211.25,211.08,0.12549]
[1731460236142,4.7341,211.23,211.06,0.12549]
[1731460236349,4.7341,211.23,211.06,20.12549]
[1731460236549,4.7341,211.23,211.08,0.12549]
[1731460236750,4.7328,211.29,211.1,20.12549]
[1731460236943,23.77760583,211.25,211.18,23.77760583]
[1731460237246,4.7328,211.29,211.18,23.77760583]
[1731460237247,23.77760583,211.26,211.19,23.90309583]
[1731460237751,23.77760583,211.27,211.19,23.90309583]
[1731460237922,23.77760583,211.26,211.19,0.12549]
[1731460238129,23.77760583,211.24,211.18,15.5764]
[1731460238339,23.77760583,211.22,211.18,15.5764]
[1731460238728,20.0,211.23,211.18,15.5764]
[1731460239047,23.77760583,211.27,211.21,0.12549]
[1731460239747,23.77760583,211.29,211.22,0.12549]
[1731460240045,23.77760583,211.29,211.22,23.90309583]
[1731460240426,23.77760583,211.3,211.22,23.90309583]
[1731460240634,4.11746823,211.4,211.26,0.12549]
[1731460240834,23.77760583,211.36,211.29,23.77760583]
[1731460241022,23.77760583,211.36,211.28,0.12549]
[1731460241227,23.77760583,211.37,211.3,23.77760583]
[1731460241426,3.95226988,211.47,211.34,23.77760583]
[1731460241624,16.0779,211.54,211.3,0.12549]
[1731460241625,23.77760583,211.5,211.43,23.77760583]
[1731460241840,4.7276,211.52,211.45,23.77760583]
[1731460242041,23.77760583,211.53,211.45,23.77760583]
[1731460242727,7.3591739,211.54,211.47,23.77760583]
[1731460242927,23.77760583,211.53,211.46,4.729]
[1731460243148,23.77760583,211.53,211.46,23.77760583]
[1731460243343,7.3591739,211.54,211.49,23.77760583]
[1731460243547,7.3591739,211.54,211.45,16.552]
[1731460243548,7.3591739,211.54,211.51,23.77760583]
[1731460244255,23.77760583,211.59,211.51,23.77760583]
[1731460244757,23.77760583,211.59,211.51,28.50540583]
[1731460244958,23.77760583,211.57,211.46,16.5515]
[1731460245132,23.77760583,211.57,211.5,23.77760583]
[1731460245454,23.77760583,211.59,211.51,23.77760583]
[1731460246244,24.23283703,211.61,211.53,23.77760583]
[1731460246955,23.77760583,211.59,211.53,11.8183]
[1731460247333,23.77760583,211.59,211.53,35.59590583]
[1731460247535,0.4552312,211.61,211.56,23.77760583]
[1731460247736,0.4552312,211.61,211.53,16.5457]
[1731460247737,0.4552312,211.61,211.6,23.77760583]
[1731460248358,0.4552312,211.61,211.58,23.77760583]
[1731460248938,0.4552312,211.61,211.56,23.77760583]
[1731460249246,0.4552312,211.61,211.6,23.77760583]
[1731460250146,0.4552312,211.61,211.58,23.77760583]
[1731460251255,0.4552312,211.61,211.56,4.7266]
[1731460251256,0.4552312,211.61,211.57,20.0]
[1731460251456,0.4552312,211.61,211.54,35.59560583]
[1731460251759,0.4552312,211.61,211.58,23.77760583]
[1731460251959,0.4552312,211.61,211.54,16.5452]
[1731460251960,0.4552312,211.61,211.56,23.77760583]
[1731460252147,4.7228,211.74,211.61,20.0]
[1731460252343,23.77760583,211.75,211.67,23.77760583]
[1731460252640,28.50030583,211.75,211.67,23.77760583]
[1731460253146,23.77760583,211.74,211.67,23.77760583]
[1731460253558,28.50030583,211.75,211.67,23.77760583]
[1731460253762,23.77760583,211.74,211.67,23.77760583]
[1731460254064,4.7217,211.79,211.71,23.77760583]
[1731460254241,23.77760583,211.78,211.71,23.77760583]
[1731460254646,23.77760583,211.77,211.7,23.77760583]
[1731460255166,23.77760583,211.8,211.73,23.77760583]
[1731460255339,28.49880583,211.81,211.74,23.77760583]
[1731460255534,23.77760583,211.8,211.73,23.77760583]
[1731460255867,0.4552312,211.82,211.79,23.77760583]
[1731460256171,0.4552312,211.82,211.76,23.77760583]
[1731460256340,0.4552312,211.82,211.78,23.77760583]
[1731460256546,0.4552312,211.82,211.79,23.77760583]
[1731460257249,0.4552312,211.82,211.78,23.77760583]
[1731460258546,0.4552312,211.82,211.81,23.77760583]
[1731460259067,5.1762312,211.82,211.73,16.5182]
[1731460259368,0.4552312,211.82,211.73,33.0484]
[1731460259871,0.4552312,211.82,211.75,0.07918583]
[1731460260252,0.4552312,211.82,211.76,16.60728583]
[1731460260569,0.4552312,211.82,211.81,23.77760583]
[1731460260954,0.4552312,211.82,211.8,23.77760583]
[1731460261355,0.4552312,211.82,211.81,23.77760583]
[1731460261562,0.4552312,211.82,211.81,43.77760583]
[1731460262167,0.4552312,211.82,211.81,48.57799166]
[1731460262559,0.4552312,211.82,211.81,48.57803305]
[1731460262872,23.77760583,211.93,211.84,20.0]
[1731460263174,4.7179,211.96,211.84,20.0]
[1731460263175,23.77760583,211.89,211.84,20.0]
[1731460263479,23.77760583,211.85,211.79,4.7215]
[1731460263683,23.77760583,211.83,211.77,6.3616]
[1731460263862,23.77760583,211.82,211.77,6.3616]
[1731460264171,23.77760583,211.82,211.76,11.8055]
[1731460264377,23.77760583,211.8,211.73,16.5182]
[1731460264569,23.77760583,211.86,211.73,16.5182]
[1731460264570,23.77760583,211.76,211.73,16.5182]
[1731460264761,23.77760583,211.76,211.7,28.50110583]
[1731460265070,23.77760583,211.74,211.67,16.5293]
[1731460265267,23.77760583,211.72,211.67,16.5293]
[1731460265462,23.77760583,211.74,211.68,0.12549]
[1731460265774,23.77760583,211.72,211.67,16.5293]
[1731460265953,23.77760583,211.68,211.61,16.5394]
[1731460266157,23.77760583,211.68,211.59,15.5634]
[1731460266158,23.77760583,211.65,211.59,15.5634]
[1731460266463,23.77760583,211.63,211.59,15.5634]
[1731460266665,23.77760583,211.65,211.59,15.5634]
[1731460266847,23.77760583,211.67,211.59,20.2894]
[1731460267049,23.77760583,211.67,211.6,23.90309583]
[1731460267566,23.77760583,211.67,211.59,32.1047]
[1731460267760,23.77760583,211.65,211.59,15.5634]
[1731460267958,4.7236,211.7,211.54,11.818]
[1731460267959,23.77760583,211.63,211.54,35.59560583]
[1731460268160,23.77760583,211.61,211.54,40.32280583]
[1731460268575,23.77760583,211.67,211.59,23.77760583]
[1731460268780,62.0574388,211.64,211.57,38.2805548]
[1731460268970,38.2805548,211.62,211.54,11.818]
[1731460269269,23.776884,211.59,211.52,16.1878]
[1731460269475,23.776884,211.68,211.52,16.1878]
[1731460269686,38.2805548,211.63,211.56,38.2805548]
[1731460269973,23.776884,211.63,211.56,38.2805548]
[1731460270155,23.776884,211.63,211.52,32.7345]
[1731460270156,38.2805548,211.62,211.54,38.2805548]
[1731460270357,62.0574388,211.63,211.55,38.4060448]
[1731460270977,38.2805548,211.62,211.55,38.4060448]
[1731460271163,38.2805548,211.64,211.56,58.2805548]
[1731460271476,38.2805548,211.64,211.57,38.2805548]
[1731460271674,38.2805548,211.66,211.58,38.2805548]
[1731460271978,6.4629,211.7,211.55,0.12549]
[1731460271979,38.2805548,211.61,211.55,0.12549]
[1731460272155,38.2805548,211.57,211.55,0.12549]
[1731460272471,23.776884,211.64,211.5,11.8202]
[1731460272472,38.2805548,211.56,211.5,11.8202]
[1731460272648,46.6141,211.7,211.46,20.9561]
[1731460272649,23.776884,211.55,211.46,20.9561]
[1731460272973,38.2805548,211.58,211.51,16.5475]
[1731460273177,38.2805548,211.55,211.48,38.2805548]
[1731460273349,38.2805548,211.54,211.47,4.7286]
[1731460273548,38.2805548,211.53,211.46,66.3302548]
[1731460273775,38.2805548,211.52,211.46,28.0497]
[1731460273951,38.2805548,211.52,211.47,0.12549]
[1731460274353,0.1,211.6,211.39,0.07918583]
[1731460274354,38.2805548,211.51,211.43,38.2805548]
[1731460274592,38.2805548,211.51,211.44,38.4060448]
[1731460274867,23.776884,211.49,211.43,38.2805548]
[1731460275206,23.776884,211.49,211.43,20.0]
[1731460275361,23.776884,211.49,211.44,0.12549]
[1731460275674,23.776884,211.5,211.44,38.4060448]
[1731460275863,23.776884,211.53,211.48,38.2805548]
[1731460276363,38.2805548,211.53,211.46,38.2805548]
[1731460276960,38.2805548,211.53,211.46,43.0094548]
[1731460277169,23.776884,211.54,211.47,38.2805548]
[1731460277583,62.0574388,211.54,211.47,38.2805548]
[1731460277880,23.776884,211.54,211.47,38.2805548]
[1731460278255,62.0574388,211.54,211.47,38.2805548]
[1731460278582,38.2805548,211.55,211.47,38.2805548]
[1731460278759,38.2805548,211.53,211.47,20.0]
[1731460278956,62.0574388,211.54,211.47,20.0]
[1731460279551,62.0574388,211.54,211.47,38.2805548]
[1731460279981,38.2805548,211.52,211.45,54.8328548]
[1731460280276,23.776884,211.51,211.46,38.2805548]
[1731460280474,23.776884,211.51,211.45,54.8328548]
[1731460280677,23.776884,211.51,211.45,11.8231]
[1731460280678,62.0574388,211.51,211.45,11.8231]
[1731460280978,38.2805548,211.49,211.42,38.2805548]
[1731460281181,23.776884,211.51,211.4,0.12549]
[1731460281182,38.2805548,211.44,211.4,0.12549]
[1731460281578,38.2805548,211.45,211.4,0.12549]
[1731460281868,62.0574388,211.49,211.41,38.2805548]
[1731460282077,38.2805548,211.47,211.4,16.68159]
[1731460282255,23.776884,211.51,211.44,4.85489]
[1731460283071,23.776884,211.53,211.47,0.12549]
[1731460283274,23.776884,211.53,211.47,38.4060448]
[1731460283582,38.2805548,211.54,211.47,38.4060448]
[1731460283583,23.776884,211.51,211.47,0.12549]
[1731460284287,38.2805548,211.49,211.41,58.2805548]
[1731460284578,23.776884,211.48,211.42,4.7299]
[1731460284772,23.776884,211.49,211.43,58.4060448]
[1731460284978,4.7273,211.54,211.45,38.2805548]
[1731460284979,38.2805548,211.52,211.45,38.2805548]
[1731460285181,38.2805548,211.51,211.45,20.0]
[1731460285484,66.7851388,211.52,211.45,20.0]
[1731460285681,23.776884,211.52,211.45,58.2805548]
[1731460285857,62.0574388,211.52,211.45,20.0]
[1731460286056,38.2805548,211.56,211.48,38.2805548]
[1731460286257,38.2805548,211.58,211.5,38.2805548]
[1731460286473,38.2805548,211.61,211.53,38.2805548]
[1731460286668,38.2805548,211.61,211.51,4.7279]
[1731460286669,38.2805548,211.64,211.56,38.4060448]
[1731460286990,38.2805548,211.65,211.58,38.2805548]
[1731460287163,38.2805548,211.64,211.56,38.4060448]
[1731460287364,38.2805548,211.64,211.57,20.0]
[1731460287589,38.2805548,211.65,211.58,38.2805548]
[1731460287995,38.2805548,211.65,211.57,38.2805548]
[1731460288166,38.2805548,211.66,211.59,38.2805548]
[1731460289471,38.2805548,211.64,211.58,11.8158]
[1731460289666,38.2805548,211.64,211.57,54.0025548]
[1731460289667,38.2805548,211.62,211.57,15.722]
[1731460290208,38.2805548,211.63,211.58,0.12549]
[1731460290402,23.776884,211.62,211.58,0.12549]
[1731460290582,38.2805548,211.63,211.58,0.12549]
[1731460290769,38.2805548,211.65,211.58,0.12549]
[1731460290967,23.776884,211.62,211.58,0.12549]